fUSD/lending_fUSD_20250923
["ID","MTS","AMOUNT","RATE_DAILY","PERIOD"]
[387273773,1758671445405,-1996.29,0.00024657,3]
[387273774,1758671445414,-400.0,0.00024657,3]
[387273775,1758671445424,-400.0,0.00024657,3]
[387273776,1758671445433,-400.0,0.00024657,3]
[387273777,1758671445444,-400.0,0.00024657,3]
[387273778,1758671445454,-519.5,0.00024657,3]
[387273779,1758671445463,-1531.44,0.00024657,3]
[387273780,1758671445474,-400.0,0.00024657,3]
[387273781,1758671445484,-1966.6,0.00024657,3]
[387273782,1758671445494,-1024.28,0.00024657,3]
[387273783,1758671445503,-1196.35,0.00024657,3]
[387273784,1758671445515,-400.0,0.00024657,3]
[387273785,1758671445525,-1701.6,0.00024657,3]
[387273786,1758671445535,-1467.21,0.00024657,3]
[387273787,1758671445545,-400.0,0.00024657,3]
[387273788,1758671445554,-400.0,0.00024657,3]
[387273789,1758671445564,-400.0,0.00024657,3]
[387273790,1758671445574,-921.58,0.00024657,3]
[387273791,1758671445584,-5034.51,0.00024657,3]
[387273792,1758671445594,-750.8,0.00024657,3]
[387273793,1758671445603,-400.0,0.00024657,3]
[387273794,1758671445614,-400.0,0.00024657,3]
[387273795,1758671445623,-1720.5,0.00024657,3]
[387273796,1758671445634,-1082.49,0.00024657,3]
[387273797,1758671445643,-400.0,0.00024657,3]
[387273798,1758671445654,-1176.12,0.00024657,3]
[387273799,1758671445663,-758.77,0.00024657,3]
[387273800,1758671445674,-4220.73,0.00024657,3]
[387273801,1758671445684,-320.14764395,0.00024657,3]
[387273802,1758671445694,-1157.15,0.00024657,3]
[387273803,1758671445703,-2281.79,0.00024657,3]
[387273804,1758671445713,-1721.9,0.00024657,3]
[387273805,1758671445722,-685.06,0.00024657,3]
[387273806,1758671445732,-1652.46,0.00024657,3]
[387273807,1758671445742,-400.0,0.00024657,3]
[387273808,1758671445751,-400.0,0.00024657,3]
[387273809,1758671445762,-487.43,0.00024657,3]
[387273810,1758671445772,-400.0,0.00024657,3]
[387273811,1758671445781,-400.0,0.00024657,3]
[387273812,1758671445791,-400.0,0.00024657,3]
[387273813,1758671445801,-2011.03,0.00024657,3]
[387273814,1758671445810,-400.0,0.00024657,3]
[387273815,1758671445820,-400.0,0.00024657,3]
[387273816,1758671445830,-816.1,0.00024657,3]
[387273817,1758671445839,-446.72,0.00024657,3]
[387273818,1758671445849,-2084.76,0.00024657,3]
[387273819,1758671445859,-400.0,0.00024657,3]
[387273820,1758671445868,-500.0,0.00024657,3]
[387273821,1758671445878,-1580.13,0.00024657,3]
[387273822,1758671445887,-1938.49,0.00024657,3]
[387273823,1758671445897,-6392.57,0.00024657,3]
[387273824,1758671445907,-400.0,0.00024657,3]
[387273825,1758671445917,-499.13,0.00024657,3]
[387273826,1758671445926,-1736.87,0.00024657,3]
[387273827,1758671445936,-400.0,0.00024657,3]
[387273828,1758671445945,-2656.78,0.00024657,3]
[387273829,1758671445955,-400.0,0.00024657,3]
[387273830,1758671445964,-1037.02,0.00024657,3]
[387273831,1758671445974,-407.23,0.00024657,3]
[387273832,1758671445983,-423.45,0.00024657,3]
[387273833,1758671445993,-414.62,0.00024657,3]
[387273834,1758671446002,-400.0,0.00024657,3]
[387273835,1758671446012,-1664.27,0.00024657,3]
[387273836,1758671446022,-400.0,0.00024657,3]
[387273837,1758671446031,-400.0,0.00024657,3]
[387273838,1758671446041,-2121.34,0.00024657,3]
[387273839,1758671446051,-400.0,0.00024657,3]
[387273840,1758671446060,-485.96,0.00024657,3]
[387273841,1758671446070,-705.98,0.00024657,3]
[387273842,1758671446079,-400.0,0.00024657,3]
[387273843,1758671446089,-1456.06,0.00024657,3]
[387273844,1758671446099,-400.0,0.00024657,3]
[387273845,1758671446108,-400.0,0.00024657,3]
[387273846,1758671446118,-488.29,0.00024657,3]
[387273847,1758671446127,-400.0,0.00024657,3]
[387273848,1758671446137,-1796.01,0.00024657,3]
[387273849,1758671446147,-507.89114751,0.00024657,3]
[387273850,1758671446158,-1532.6,0.00024657,3]
[387273851,1758671446168,-400.0,0.00024657,3]
[387273852,1758671446178,-1312.21,0.00024657,3]
[387273853,1758671446188,-472.26,0.00024657,3]
[387273854,1758671446198,-737.76,0.00024657,3]
[387273855,1758671446208,-2822.6,0.00024657,3]
[387273856,1758671446218,-613.05,0.00024657,3]
[387273857,1758671446228,-666.42,0.00024657,3]
[387273858,1758671446238,-400.0,0.00024657,3]
[387273859,1758671446253,-1997.25,0.00024657,3]
[387273860,1758671446268,-400.0,0.00024657,3]
[387273861,1758671446278,-747.53,0.00024657,3]
[387273862,1758671446288,-4109.95,0.00024657,3]
[387273863,1758671446304,-12794.19,0.00024657,3]
[387273864,1758671446315,-651.34,0.00024657,3]
[387273865,1758671446326,-400.0,0.00024657,3]
[387273866,1758671446336,-400.0,0.00024657,3]
[387273867,1758671446347,-500.0,0.00024657,3]
[387273868,1758671446358,-400.0,0.00024657,3]
[387273869,1758671446368,-500.0,0.00024657,3]
[387273870,1758671446378,-441.59,0.00024657,3]
[387273871,1758671446389,-400.0,0.00024657,3]
[387273872,1758671446399,-354.01453844,0.00024657,3]
[387273873,1758671446411,-2152.34,0.00024657,3]
[387273874,1758671446421,-9684.9,0.00024657,3]
[387273875,1758671446431,-400.0,0.00024657,3]
[387273876,1758671446441,-400.0,0.00024657,3]
[387273877,1758671446451,-400.0,0.00024657,3]
[387273878,1758671446461,-2779.37,0.00024657,3]
[387273879,1758671446470,-400.0,0.00024657,3]
[387273880,1758671446480,-1435.53,0.00024657,3]
[387273881,1758671446490,-1761.97,0.00024657,3]
[387273882,1758671446500,-1871.42,0.00024657,3]
[387273883,1758671446510,-400.0,0.00024657,3]
[387273884,1758671446520,-2286.07,0.00024657,3]
[387273885,1758671446530,-1761.17,0.00024657,3]
[387273886,1758671446540,-649.56,0.00024657,3]
[387273887,1758671446550,-1485.44,0.00024657,3]
[387273888,1758671446560,-404.16,0.00024657,3]
[387273889,1758671446570,-1544.31,0.00024657,3]
[387273890,1758671446580,-617.28,0.00024657,3]
[387273891,1758671446590,-500.0,0.00024657,2]
[387273892,1758671446600,-752.4,0.00024657,3]
[387273893,1758671446610,-853.05,0.00024657,3]
[387273894,1758671446620,-3190.7,0.00024657,3]
[387273895,1758671446630,-400.0,0.00024657,3]
[387273896,1758671446640,-505.54,0.00024657,3]
[387273897,1758671446651,-662.54,0.00024657,3]
[387273898,1758671446663,-400.0,0.00024657,3]
[387273899,1758671446674,-2114.34,0.00024657,3]
[387273900,1758671446685,-427.76,0.00024657,3]
[387273901,1758671446695,-2048.67,0.00024657,3]
[387273902,1758671446706,-1265.42,0.00024657,3]
[387273903,1758671446717,-738.54,0.00024657,3]
[387273904,1758671446728,-4320.17,0.00024657,3]
[387273905,1758671446738,-400.0,0.00024657,3]
[387273906,1758671446748,-400.0,0.00024657,3]
[387273907,1758671446758,-467.87,0.00024657,3]
[387273908,1758671446768,-1213.48,0.00024657,3]
[387273909,1758671446778,-1343.56,0.00024657,3]
[387273910,1758671446788,-400.0,0.00024657,3]
[387273911,1758671446798,-400.0,0.00024657,3]
[387273912,1758671446808,-2862.01,0.00024657,3]
[387273913,1758671446818,-436.46,0.00024657,3]
[387273914,1758671446828,-400.0,0.00024657,3]
[387273915,1758671446838,-1810.28,0.00024657,3]
[387273916,1758671446848,-400.0,0.00024657,3]
[387273917,1758671446858,-784.54,0.00024657,3]
[387273918,1758671446870,-1510.24,0.00024657,3]
[387273919,1758671446880,-1523.25,0.00024657,3]
[387273920,1758671446890,-1669.12,0.00024657,3]
[387273921,1758671446902,-400.0,0.00024657,3]
[387273922,1758671446912,-400.0,0.00024657,3]
[387273924,1758671446922,-2125.61,0.00024657,3]
[387273927,1758671446933,-6888.84,0.00024657,3]
[387273929,1758671446943,-425.65,0.00024657,3]
[387273931,1758671446953,-7855.77,0.00024657,3]
[387273933,1758671446963,-464.63,0.00024657,3]
[387273935,1758671446973,-500.0,0.00024657,3]
[387273937,1758671446982,-400.0,0.00024657,3]
[387273939,1758671446992,-3623.82,0.00024657,3]
[387273941,1758671447003,-831.42,0.00024657,3]
[387273943,1758671447013,-1472.32,0.00024657,3]
[387273945,1758671447023,-616.62,0.00024657,3]
[387273947,1758671447033,-573.46,0.00024657,3]
[387273949,1758671447043,-973.38,0.00024657,3]
[387273951,1758671447052,-506.26,0.00024657,3]
[387273953,1758671447062,-504.43,0.00024657,3]
[387273955,1758671447072,-1169.49,0.00024657,3]
[387273958,1758671447082,-1142.94,0.00024657,3]
[387273960,1758671447091,-2736.91,0.00024657,3]
[387273962,1758671447101,-2206.22,0.00024657,3]
[387273964,1758671447110,-400.0,0.00024657,3]
[387273966,1758671447120,-400.0,0.00024657,3]
[387273968,1758671447130,-1209.27,0.00024657,3]
[387273970,1758671447140,-767.97,0.00024657,3]
[387273972,1758671447150,-755.94,0.00024657,3]
[387273974,1758671447160,-400.0,0.00024657,3]
[387273976,1758671447169,-797.52,0.00024657,3]
[387273978,1758671447179,-1115.85,0.00024657,3]
[387273980,1758671447189,-400.0,0.00024657,3]
[387273982,1758671447199,-2296.9,0.00024657,3]
[387273984,1758671447208,-716.0,0.00024657,3]
[387273986,1758671447219,-400.0,0.00024657,3]
[387273988,1758671447228,-400.0,0.00024657,3]
[387273990,1758671447238,-400.0,0.00024657,3]
[387273992,1758671447248,-400.0,0.00024657,3]
[387273995,1758671447258,-400.0,0.00024657,3]
[387273997,1758671447268,-500.0,0.00024657,3]
[387273999,1758671447278,-1784.41,0.00024657,3]
[387274001,1758671447290,-400.0,0.00024657,3]
[387274003,1758671447299,-400.0,0.00024657,3]
[387274005,1758671447309,-1504.15,0.00024657,3]
[387274007,1758671447321,-2093.57,0.00024657,3]
[387274009,1758671447331,-3250.29,0.00024657,3]
[387274010,1758671447341,-1761.45,0.00024657,3]
[387274011,1758671447351,-1003.58,0.00024657,3]
[387274012,1758671447362,-888.41,0.00024657,3]
[387274013,1758671447371,-400.0,0.00024657,3]
[387274014,1758671447381,-1520.41,0.00024657,3]
[387274015,1758671447391,-400.0,0.00024657,3]
[387274016,1758671447404,-400.0,0.00024657,3]
[387274017,1758671447415,-400.0,0.00024657,3]
[387274018,1758671447426,-1357.21,0.00024657,3]
[387274019,1758671447436,-400.0,0.00024657,3]
[387274020,1758671447447,-874.67,0.00024657,3]
[387274021,1758671447458,-457.26283652,0.00024657,3]
[387274022,1758671447471,-1464.24,0.00024657,3]
[387274023,1758671447483,-571.21,0.00024657,3]
[387274024,1758671447494,-417.29,0.00024657,3]
[387274025,1758671447508,-400.0,0.00024657,3]
[387274026,1758671447524,-2271.75,0.00024657,3]
[387274027,1758671447535,-400.0,0.00024657,3]
[387274028,1758671447547,-1935.11,0.00024657,3]
[387274029,1758671447558,-1204.31,0.00024657,3]
[387274030,1758671447570,-1590.74,0.00024657,3]
[387274031,1758671447581,-1400.33,0.00024657,3]
[387274032,1758671447593,-400.0,0.00024657,3]
[387274033,1758671447603,-2008.71,0.00024657,3]
[387274034,1758671447613,-694.94,0.00024657,3]
[387274035,1758671447624,-2023.58,0.00024657,3]
[387274036,1758671447635,-7575.68,0.00024657,3]
[387274037,1758671447646,-2854.97,0.00024657,3]
[387274038,1758671447656,-1419.47,0.00024657,3]
[387274039,1758671447666,-400.0,0.00024657,3]
[387274040,1758671447675,-484.36,0.00024657,3]
[387274041,1758671447685,-683.28,0.00024657,3]
[387274042,1758671447695,-400.0,0.00024657,3]
[387274043,1758671447705,-400.0,0.00024657,3]
[387274044,1758671447715,-2448.05,0.00024657,3]
[387274045,1758671447724,-400.0,0.00024657,3]
[387274046,1758671447734,-2478.89,0.00024657,3]
[387274047,1758671447743,-400.0,0.00024657,3]
[387274048,1758671447753,-4357.23,0.00024657,3]
[387274049,1758671447764,-400.0,0.00024657,3]
[387274050,1758671447773,-943.93,0.00024657,3]
[387274051,1758671447783,-400.0,0.00024657,3]
[387274052,1758671447793,-498.2,0.00024657,3]
[387274053,1758671447803,-400.0,0.00024657,3]
[387274054,1758671447812,-1728.66,0.00024657,3]
[387274055,1758671447822,-400.0,0.00024657,3]
[387274056,1758671447833,-2196.01,0.00024657,3]
[387274057,1758671447845,-2386.98,0.00024657,3]
[387274058,1758671447855,-437.26,0.00024657,3]
[387274059,1758671447865,-400.0,0.00024657,3]
[387274060,1758671447875,-1784.04,0.00024657,3]
[387274061,1758671447885,-400.0,0.00024657,3]
[387274062,1758671447895,-400.0,0.00024657,3]
[387274063,1758671447906,-400.0,0.00024657,3]
[387274064,1758671447917,-1029.77,0.00024657,3]
[387274065,1758671447929,-789.7,0.00024657,3]
[387274066,1758671447939,-400.0,0.00024657,3]
[387274067,1758671447949,-400.0,0.00024657,3]
[387274068,1758671447959,-2330.29,0.00024657,3]
[387274069,1758671447969,-1399.29,0.00024657,3]
[387274070,1758671447979,-844.72,0.00024657,3]
[387274071,1758671447988,-400.0,0.00024657,3]
[387274072,1758671447998,-492.72,0.00024657,3]
[387274073,1758671448008,-716.26,0.00024657,3]
[387274074,1758671448018,-3639.86,0.00024657,3]
[387274075,1758671448028,-400.0,0.00024657,3]
[387274076,1758671448038,-2107.67,0.00024657,3]
[387274077,1758671448048,-5941.89,0.00024657,3]
[387274078,1758671448058,-1534.99,0.00024657,3]
[387274079,1758671448068,-400.0,0.00024657,3]
[387274080,1758671448077,-459.53,0.00024657,3]
[387274081,1758671448087,-400.0,0.00024657,3]
[387274082,1758671448097,-2671.9,0.00024657,3]
[387274083,1758671448107,-400.0,0.00024657,3]
[387274084,1758671448117,-659.95,0.00024657,3]
[387274085,1758671448127,-400.0,0.00024657,3]
[387274086,1758671448136,-400.0,0.00024657,2]
[387274087,1758671448146,-1573.5,0.00024657,3]
[387274088,1758671448156,-1172.93,0.00024657,3]
[387274089,1758671448166,-400.0,0.00024657,3]
[387274090,1758671448177,-2234.57,0.00024657,3]
[387274091,1758671448186,-400.0,0.00024657,3]
[387274092,1758671448196,-2676.54,0.00024657,3]
[387274093,1758671448206,-1718.64,0.00024657,3]
[387274094,1758671448216,-1144.57,0.00024657,3]
[387274095,1758671448226,-2826.63,0.00024657,3]
[387274096,1758671448235,-2375.68,0.00024657,3]
[387274097,1758671448245,-657.71,0.00024657,3]
[387274098,1758671448255,-647.92,0.00024657,3]
[387274099,1758671448266,-409.28528489,0.00024657,3]
[387274100,1758671448276,-400.0,0.00024657,3]
[387274101,1758671448287,-989.49,0.00024657,3]
[387274102,1758671448298,-4251.27,0.00024657,3]
[387274103,1758671448308,-612.58,0.00024657,3]
[387274104,1758671448318,-400.0,0.00024657,3]
[387274105,1758671448328,-400.0,0.00024657,3]
[387274106,1758671448338,-435.02,0.00024657,3]
[387274107,1758671448348,-2129.26,0.00024657,3]
[387274108,1758671448359,-846.7,0.00024657,3]
[387274109,1758671448369,-3407.16,0.00024657,3]
[387274110,1758671448379,-500.0,0.00024657,3]
[387274111,1758671448715,-500.0,0.00024657,3]
[387274112,1758671448741,-941.99,0.00024657,3]
[387274113,1758671448751,-500.0,0.00024657,3]
[387274114,1758671448761,-500.0,0.00024657,3]
[387274115,1758671448771,-500.0,0.00024657,3]
[387274116,1758671448781,-472.07,0.00024657,3]
[387274117,1758671448791,-400.0,0.00024657,3]
[387274118,1758671448800,-630.12,0.00024657,3]
[387274119,1758671448810,-2660.42,0.00024657,3]
[387274120,1758671448820,-400.0,0.00024657,3]
[387274121,1758671448830,-444.95844881,0.00024657,3]
[387274122,1758671448839,-400.0,0.00024657,3]
[387274123,1758671448848,-400.0,0.00024657,3]
[387274124,1758671448858,-400.0,0.00024657,3]
[387274125,1758671448867,-400.0,0.00024657,3]
[387274126,1758671448877,-1301.69,0.00024657,3]
[387274127,1758671448886,-400.0,0.00024657,3]
[387274128,1758671448896,-400.0,0.00024657,3]
[387274129,1758671448906,-1338.17,0.00024657,3]
[387274130,1758671448915,-1000.0,0.00024657,3]
[387274131,1758671448925,-1913.92,0.00024657,3]
[387274132,1758671448935,-467.36,0.00024657,3]
[387274133,1758671448944,-400.0,0.00024657,3]
[387274134,1758671448954,-519.35,0.00024657,3]
[387274135,1758671448964,-400.0,0.00024657,3]
[387274136,1758671448974,-1980.75,0.00024657,3]
[387274137,1758671448983,-1226.21,0.00024657,3]
[387274138,1758671448993,-547.13,0.00024657,3]
[387274139,1758671449004,-400.0,0.00024657,3]
[387274140,1758671449014,-400.0,0.00024657,3]
[387274141,1758671449024,-400.0,0.00024657,3]
[387274142,1758671449034,-400.0,0.00024657,3]
[387274143,1758671449045,-1823.72,0.00024657,3]
[387274144,1758671449054,-400.0,0.00024657,3]
[387274145,1758671449064,-400.0,0.00024657,3]
[387274146,1758671449074,-505.38,0.00024657,3]
[387274147,1758671449084,-400.0,0.00024657,3]
[387274148,1758671449094,-1518.29,0.00024657,3]
[387274149,1758671449104,-300.01315538,0.00024657,3]
[387274150,1758671449114,-400.0,0.00024657,3]
[387274151,1758671449123,-300.0,0.00024657,3]
[387274152,1758671449133,-2040.54,0.00024657,3]
[387274153,1758671449143,-400.0,0.00024657,3]
[387274154,1758671449153,-805.13,0.00024657,3]
[387274155,1758671449163,-727.37,0.00024657,3]
[387274156,1758671449173,-4009.58,0.00024657,3]
[387274157,1758671449183,-400.0,0.00024657,3]
[387274158,1758671449193,-482.61,0.00024657,3]
[387274159,1758671449203,-471.6,0.00024657,3]
[387274160,1758671449212,-173.47275814,0.00024657,3]
[387274161,1758671450057,-500.0,0.00019982,2]
[387274162,1758671450067,-500.0,0.00019982,2]
[387274163,1758671450078,-226.52724186,0.00024657,3]
[387274164,1758671450088,-400.0,0.00024657,3]
[387274165,1758671450097,-400.0,0.00024657,3]
[387274166,1758671450107,-400.0,0.00024657,3]
[387274167,1758671450117,-400.0,0.00024657,3]
[387274168,1758671450126,-7117.08,0.00024657,3]
[387274169,1758671450136,-533.05,0.00024657,3]
[387274170,1758671450146,-1197.19,0.00024657,3]
[387274171,1758671450155,-382.91938886,0.00024657,3]
[387274172,1758671450167,-252.48061114,0.00024657,3]
[387274173,1758671450176,-147.64960184,0.00024657,3]
[387274174,1758671450188,-252.35039816,0.00024657,3]
[387274175,1758671450197,-795.12,0.00024657,3]
[387274176,1758671450207,-487.44,0.00024657,3]
[387274177,1758671450216,-400.0,0.00024657,3]
[387274178,1758671450226,-2484.89,0.00024657,3]
[387274179,1758671450236,-662.92,0.00024657,3]
[387274180,1758671450245,-400.0,0.00024657,3]
[387274181,1758671450256,-1745.83,0.00024657,3]
[387274182,1758671450266,-3348.88,0.00024657,3]
[387274183,1758671450276,-1154.54992359,0.00024657,3]
[387274184,1758671450288,-1577.10219932,0.00024657,3]
[387274185,1758671450299,-411.75610827,0.00024657,3]
[387274186,1758671450327,-500.0,0.00019982,2]
[387274187,1758671450346,-942.53176882,0.00024657,3]
[387274188,1758671450355,-813.22,0.00024657,3]
[387274189,1758671450365,-1749.24793118,0.00024657,3]
[387274190,1758671452437,-500.0,0.00019982,2]
[387274191,1758671452447,-122.934,0.00019982,2]
[387274192,1758671452458,-328.31959918,0.00019982,2]
[387274193,1758671452499,-48.74640082,0.00019982,2]
[387274194,1758671452508,-500.0,0.00019982,2]
[387274195,1758671452517,-500.0,0.00019982,2]
[387274196,1758671452526,-4398.55047356,0.00024657,3]
[387274197,1758671452537,-597.0,0.00024657,3]
[387274198,1758671452648,-1612.14977291,0.00024657,3]
[387274199,1758671452658,-1286.86674357,0.00024657,3]
[387274200,1758671452670,-484.30291347,0.00024657,3]
[387274201,1758671452719,-1142.37216531,0.00024657,3]
[387274202,1758671452728,-400.0,0.00024657,3]
[387274203,1758671452737,-400.0,0.00024657,3]
[387274204,1758671452746,-400.0,0.00024657,3]
[387274205,1758671452756,-471.48011758,0.00024657,3]
[387274206,1758671453322,-283.07358003,0.00024657,3]
[387274207,1758671453433,-2059.25630239,0.00024657,3]
[387274208,1758671453443,-93.6944977,0.00024657,3]
[387274209,1758671453571,-306.3055023,0.00024657,3]
[387274210,1758671453581,-2578.76,0.00024657,3]
[387274211,1758671453590,-400.0,0.00024657,3]
[387274212,1758671453599,-400.0,0.00024657,3]
[387274213,1758671453610,-400.0,0.00024657,3]
[387274214,1758671453620,-400.0,0.00024657,3]
[387274215,1758671453629,-404.49516733,0.00024657,3]
[387274216,1758671453638,-1150.87,0.00024657,3]
[387274217,1758671453649,-400.0,0.00024657,3]
[387274218,1758671453658,-303.49546283,0.00024657,3]
[387274219,1758671453757,-96.50453717,0.00024657,3]
[387274220,1758671453767,-691.32,0.00024657,3]
[387274221,1758671453776,-67.61004749,0.00024657,3]
[387274222,1758671453788,-332.38995251,0.00024657,3]
[387274223,1758671453798,-400.0,0.00024657,3]
[387274224,1758671453807,-620.20427718,0.00024657,3]
[387274225,1758671453819,-774.68303743,0.00024657,3]
[387274226,1758671453953,-894.59268539,0.00024657,3]
[387274227,1758671453963,-568.43,0.00024657,3]
[387274228,1758671453973,-815.69,0.00024657,3]
[387274229,1758671453983,-736.81,0.00024657,3]
[387274230,1758671453993,-400.0,0.00024657,3]
[387274231,1758671454002,-400.0,0.00024657,3]
[387274232,1758671454012,-410.6,0.00024657,3]
[387274233,1758671454023,-540.28303382,0.00024657,3]
[387274234,1758671454035,-311.86127415,0.00024657,3]
[387274235,1758671454046,-86.50569203,0.00024657,3]
[387274236,1758671454056,-400.0,0.00024657,3]
[387274237,1758671454066,-1519.5,0.00024657,3]
[387274238,1758671454076,-404.89199827,0.00024657,3]
[387274239,1758671454086,-2118.58,0.00024657,3]
[387274240,1758671454097,-400.0,0.00024657,3]
[387274241,1758671454107,-1945.11,0.00024657,3]
[387274242,1758671454117,-867.02,0.00024657,2]
[387274243,1758671454127,-137.2304609,0.00024657,3]
[387274244,1758671455208,-262.7695391,0.00024657,3]
[387274245,1758671455218,-187.5859779,0.00024657,3]
[387274246,1758671455243,-916.16390071,0.00024657,3]
[387274247,1758671455256,-1777.82012139,0.00024657,3]
[387274248,1758671455266,-867.02,0.00024657,2]
[387274249,1758671455276,-2053.43,0.00024657,3]
[387274250,1758671455288,-867.02,0.00024657,2]
[387274251,1758671455299,-400.0,0.00024657,3]
[387274252,1758671455318,-867.02,0.00024657,2]
[387274253,1758671455328,-867.02,0.00024657,2]
[387274254,1758671455339,-3082.18,0.00024657,3]
[387274255,1758671455350,-867.02,0.00024657,2]
[387274256,1758671455360,-1189.7,0.00024657,3]
[387274257,1758671455369,-867.02,0.00024657,2]
[387274258,1758671455379,-1327.65,0.00024657,3]
[387274259,1758671455389,-897.5,0.00024657,3]
[387274260,1758671455401,-1832.53,0.00024657,3]
[387274261,1758671455414,-455.08,0.00024657,3]
[387274262,1758671455424,-400.0,0.00024657,3]
[387274263,1758671455434,-216.56497073,0.00024657,3]
[387274264,1758671455446,-400.0,0.00024657,3]
[387274265,1758671455457,-1895.53,0.00024657,3]
[387274266,1758671455467,-667.67,0.00024657,3]
[387274267,1758671455478,-3764.57,0.00024657,3]
[387274268,1758671455490,-400.0,0.00024657,3]
[387274269,1758671455501,-785.49,0.00024657,3]
[387274270,1758671455512,-9500.21,0.00024657,3]
[387274271,1758671455522,-400.0,0.00024657,3]
[387274272,1758671455532,-1586.11,0.00024657,3]
[387274273,1758671455543,-2810.87,0.00024657,3]
[387274274,1758671455553,-400.0,0.00024657,3]
[387274275,1758671455564,-400.0,0.00024657,3]
[387274276,1758671455576,-400.0,0.00024657,3]
[387274277,1758671455587,-400.0,0.00024657,3]
[387274278,1758671455597,-1834.85,0.00024657,3]
[387274279,1758671455607,-1725.6,0.00024657,3]
[387274280,1758671455618,-856.78,0.00024657,3]
[387274281,1758671455628,-400.0,0.00024657,3]
[387274282,1758671455638,-400.0,0.00024657,3]
[387274283,1758671455648,-16036.47,0.00024657,3]
[387274284,1758671455658,-520.46,0.00024657,3]
[387274285,1758671455668,-400.0,0.00024657,3]
[387274286,1758671455678,-1182.13,0.00024657,3]
[387274287,1758671455688,-400.0,0.00024657,3]
[387274288,1758671455698,-400.0,0.00024657,3]
[387274289,1758671455708,-1293.47,0.00024657,3]
[387274290,1758671455720,-1810.6,0.00024657,3]
[387274291,1758671455732,-627.67,0.00024657,3]
[387274292,1758671455742,-1920.37,0.00024657,3]
[387274293,1758671455752,-400.0,0.00024657,3]
[387274294,1758671455762,-3358.72,0.00024657,3]
[387274295,1758671455772,-451.63,0.00024657,3]
[387274296,1758671455783,-3322.46,0.00024657,3]
[387274297,1758671455792,-400.0,0.00024657,3]
[387274298,1758671455802,-400.0,0.00024657,3]
[387274299,1758671455812,-400.0,0.00024657,3]
[387274300,1758671455823,-400.0,0.00024657,3]
[387274301,1758671455834,-400.0,0.00024657,3]
[387274302,1758671455844,-400.0,0.00024657,3]
[387274303,1758671455854,-362.32400524,0.00024657,3]
[387274304,1758671455864,-400.0,0.00024657,3]
[387274305,1758671455875,-400.0,0.00024657,3]
[387274306,1758671455885,-2394.05,0.00024657,3]
[387274307,1758671455896,-1431.0,0.00024657,3]
[387274308,1758671455906,-400.0,0.00024657,3]
[387274309,1758671455916,-400.0,0.00024657,3]
[387274310,1758671455927,-1000.0,0.00024658,3]
[387274311,1758671455937,-1000.0,0.00024658,3]
[387274312,1758671455948,-1000.0,0.00024658,3]
[387274313,1758671455959,-1000.0,0.00024658,3]
[387274314,1758671455970,-1000.0,0.00024658,3]
[387274315,1758671455981,-1000.0,0.00024658,3]
[387274316,1758671455992,-1000.0,0.00024658,3]
[387274317,1758671456003,-1000.0,0.00024658,3]